Cogmind - Beta 16 @@@ ROGUE MODE // 2025.12.09 @ 19:34:50 Player: laeb2 Result: Destroyed by G-73 Enforcer with Phase Gun Performance ------------- Evolutions (6) 3000 Regions Visited (16) 3200 Robots Destroyed (151) 755 Value Destroyed (8219) 8219 Prototype IDs (13) 260 Alien Tech Used (0) 0 Bonus (3960) 3960 TOTAL SCORE: 19394 Bonus ------- High Alert Combat Kills 1766 Follower Combat Kills 694 Entered Garrisons 200 Entered DSFs 500 Acquired ECA 300 MAIN.C Attacked Warlord 500 Cogmind --------- Core Integrity 0/1150 Matter 178/300 Energy 24/100 System Corruption 19% Temperature Cool (0) Movement Core (1950) Ox38 Location -4/Factory Parts ------- > --- POWER (1) -------- (None) > --- PROPULSION (6) --- (None) > --- UTILITY (7) ------ Huge Storage Unit Improved Medium Armor Plating > --- WEAPON (5) ------- Vortex Shotgun Heavy Mass Driver > --- INVENTORY (25) --- Neutrino Core Cooled Fission Core Advanced Heat Sink Advanced Heat Sink Experimental Heat Sink Experimental Heat Sink Encrypted Comm Array Advanced Target Analyzer Long-range Proton Cannon Heavy Plasma Cannon Matter Neutralizer KE Penetrator KE Penetrator Railgun Heavy Mass Driver Improved Plasma Cutter Peak State ------------ > --- POWER ------------ Improved Quantum Reactor > --- PROPULSION ------- Improved Medium Treads Improved Medium Treads Improved Medium Treads Improved Medium Treads Improved Medium Treads Improved Medium Treads > --- UTILITY ---------- Experimental Heat Sink Experimental Heat Sink Advanced Cooling System Coolant Injector Large Storage Unit Huge Storage Unit Improved Medium Armor Plating > --- WEAPON ----------- Plasma Storm > --- INVENTORY -------- Neutrino Core Armored Medium Treads Encrypted Comm Array Improved Heavy Armor Plating Gatling Laser Phase Gun Vortex Shotgun Vortex Shotgun Heavy Plasma Cannon Heavy Phase Cannon Neutron Cannon Gauss Rifle Railgun Rocket Launcher Improved Plasma Cutter [Rating: 119] Favorites ----------- Power Angular Momentum Engine Engine Angular Momentum Engine Power Core Neutrino Core Reactor Improved Quantum Reactor Propulsion Improved Medium Treads Treads Improved Medium Treads Leg Myomer Leg Utility Experimental Heat Sink Device Experimental Heat Sink Storage Large Storage Unit Protection Improved Medium Armor Plating Weapon Heavy Plasma Cannon Energy Gun Gatling Laser Energy Cannon Heavy Plasma Cannon Ballistic Gun Light Assault Rifle Ballistic Cannon Heavy Flak Cannon Launcher Rocket Launcher Special Weapon Improved Plasma Cutter Build | -11 -10 -10 -10 -9 -8 -7 -7 -6 -5 -5 -5 -5 -4 -4 -4 -4 ------- Run | Yrd Mat Min Exi Min Mat Fac DSF Fac Fac Upp Upp War Pro Fac Gar Fac Slots Evolved 12 | . . . . . 4 2 . 2 2 . . . . 2 . . Power . | . . . . . . . . . . . . . . . . . Propulsion 4 | . . . . . 2 . . 1 1 . . . . . . . Utility 5 | . . . . . 1 1 . 1 1 . . . . 1 . . Weapon 3 | . . . . . 1 1 . . . . . . . 1 . . Parts Attached 112 | 7 3 4 . 3 9 2 14 12 13 . . 4 3 6 29 3 Power 10 | 1 1 . . . . . 2 1 . . . 1 . . 3 1 Engine 4 | 1 1 . . . . . 1 1 . . . . . . . . Core 5 | . . . . . . . 1 . . . . . . . 3 1 Reactor 1 | . . . . . . . . . . . . 1 . . . . Propulsion 27 | 2 . 1 . 1 3 . 3 3 4 . . . 1 . 9 . Treads 24 | 2 . 1 . 1 3 . 3 3 4 . . . 1 . 6 . Leg 3 | . . . . . . . . . . . . . . . 3 . Wheel . | . . . . . . . . . . . . . . . . . Hover . | . . . . . . . . . . . . . . . . . Flight . | . . . . . . . . . . . . . . . . . Utility 33 | 2 1 1 . . 2 1 3 4 6 . . 1 2 1 9 . Device 19 | 1 . 1 . . 2 1 . 3 5 . . 1 2 . 3 . Storage 4 | 1 1 . . . . . . 1 . . . . . 1 . . Processor . | . . . . . . . . . . . . . . . . . Hackware . | . . . . . . . . . . . . . . . . . Protection 10 | . . . . . . . 3 . 1 . . . . . 6 . Artifact . | . . . . . . . . . . . . . . . . . Weapon 42 | 2 1 2 . 2 4 1 6 4 3 . . 2 . 5 8 2 Energy Gun 14 | 2 1 . . 1 . 1 1 2 . . . 2 . 2 2 . Energy Cannon 6 | . . . . . 1 . . 1 2 . . . . . 2 . Ballistic Gun 12 | . . 2 . 1 2 . 2 1 1 . . . . 2 1 . Ballistic Cannon 5 | . . . . . . . . . . . . . . 1 2 2 Launcher 4 | . . . . . 1 . 3 . . . . . . . . . Special Weapon 1 | . . . . . . . . . . . . . . . 1 . Impact Weapon . | . . . . . . . . . . . . . . . . . Slashing Weapon . | . . . . . . . . . . . . . . . . . Piercing Weapon . | . . . . . . . . . . . . . . . . . Special Melee Weapon . | . . . . . . . . . . . . . . . . . Unidentified Prototypes 13 | . . . . . 2 . . 2 3 . . 3 . 2 . 1 Parts Lost 57 | . 2 1 . 1 1 . 10 3 1 . . . 1 2 19 16 Power 7 | . 1 . . . . . 1 1 . . . . . . 3 1 Propulsion 16 | . . . . 1 . . 2 1 . . . . . . 8 4 Utility 15 | . . 1 . . . . 2 . 1 . . . 1 1 4 5 Weapon 19 | . 1 . . . 1 . 5 1 . . . . . 1 4 6 Highest Loss Streak 14 | . 1 1 . 1 1 . 8 2 1 . . . 1 2 6 14 To Critical Strikes . | . . . . . . . . . . . . . . . . . Average Backups 13 | 2 5 9 9 8 8 8 9 10 14 15 15 12 10 14 18 21 Power 1 | . . . 1 1 1 1 . . . 1 1 1 1 1 2 1 Propulsion 1 | . . 2 2 1 . 1 3 1 1 3 3 2 1 1 1 . Utility 3 | . 1 2 3 3 3 3 3 2 3 3 3 2 1 1 4 6 Weapon 6 | 1 2 3 3 2 3 3 2 5 8 7 7 5 5 9 9 10 Tool/Special . | . . . . . . . . . . . . . . . . . Unused Backups 32 | . 2 4 . . 2 . 4 . 2 1 . 2 . 1 3 11 Power 4 | . . . . . . . . . . . . . . . 1 3 Propulsion 2 | . . . . . . . 1 . . . . . . . 1 . Utility 12 | . . 2 . . 1 . 3 . 2 . . . . 1 . 3 Weapon 14 | . 2 2 . . 1 . . . . 1 . 2 . . 1 5 Tool/Special . | . . . . . . . . . . . . . . . . . Average Slot Usage (%) 92 | . 99 99 100 99 95 99 92 99 99 100 100 99 99 77 82 73 Engine 4 | . 13 14 14 14 9 7 5 6 5 5 5 4 . . . . Core 1 | . . . . . . . 1 . . . . . . . 4 4 Treads 28 | . 28 28 28 27 32 30 27 32 35 35 35 35 35 31 19 14 Leg 1 | . . . . . . . . . . . . . . . 5 7 Device 16 | . 14 13 14 14 17 23 14 6 14 23 23 22 22 21 15 9 Storage 8 | . 14 14 14 14 9 7 7 6 5 5 5 5 5 8 8 5 Protection 5 | . . . . . . . 5 19 13 5 5 5 5 4 4 9 Energy Gun 9 | . 28 15 . 1 3 6 7 7 5 5 5 10 12 3 8 7 Energy Cannon 5 | . . . . . 5 7 6 4 7 17 17 10 5 1 4 4 Ballistic Gun 5 | . . 12 28 26 17 15 10 13 8 . . . . . 1 1 Ballistic Cannon 1 | . . . . . . . . . . . . . . . 4 5 Peak Build Rating 119 | 7 8 11 11 12 22 26 48 73 92 91 91 104 106 119 116 117 Average Rating 74 | 5 7 10 11 11 18 25 38 65 84 91 91 96 100 109 105 110 On Entrance 54 | . 7 8 11 11 12 21 26 48 73 91 91 91 104 99 116 115 Avg Prop Armor Cover (%) 3 | . . . . . . . . . . . . . . . 4 2 Naked Turns . | . . . . . . . . . . . . . . . . . Heaviest Build 177 | 12 16 16 16 19 24 28 59 77 86 78 78 80 80 152 177 177 Greatest Support 180 | 40 40 40 40 40 82 82 102 150 180 180 180 180 180 180 180 120 Greatest Overweight (x) 1 | 1 . . . . . . . . . . . . . . 1 1 Average Overweight (x) . | . . . . . . . . . . . . . . . . 1 Largest Inventory Capacity 25 | 8 10 10 10 10 10 10 10 15 15 15 15 15 15 25 25 25 Average Capacity 16 | 7 8 10 10 10 10 10 10 14 15 15 15 15 15 22 25 25 Most Carried 25 | 6 9 10 10 10 10 9 10 15 15 15 15 15 15 23 25 25 Average Carried 15 | 2 5 9 10 9 8 8 9 10 14 14 15 14 14 16 22 24 Final Capacity 25 | 8 10 10 10 10 10 10 10 15 15 15 15 15 15 25 25 25 Final Carried 25 | 2 9 10 10 10 10 9 10 13 15 15 15 15 14 18 25 17 Class Distribution -------------------- 42% | Tank 18% | Scavenger-Tank 13% | Mutant 9% | Commander-Tank 9% | Scavenger-Mutant 5% | Scavenger-Gunner Dominant Class ---------------- Mutant | -10/Materials Mutant | -10/Mines Scavenger-Mutant | -10/Exiles Scavenger-Mutant | -9/Mines Scavenger-Gunner | -8/Materials Scavenger-Gunner | -7/Factory Tank | -7/DSF Tank | -6/Factory Tank | -5/Factory Tank | -5/Upper Caves Tank | -5/Upper Caves Tank | -5/Warlord Tank | -4/Proximity Caves Tank | -4/Factory Scavenger-Tank | -4/Garrison Commander-Tank | -4/Factory Resources | -11 -10 -10 -10 -9 -8 -7 -7 -6 -5 -5 -5 -5 -4 -4 -4 -4 ----------- Run | Yrd Mat Min Exi Min Mat Fac DSF Fac Fac Upp Upp War Pro Fac Gar Fac Matter Collected 3966 | 270 170 40 . 125 173 . 576 266 297 5 9 68 155 137 1496 179 Remotely 342 | . . . . . . . 342 . . . . . . . . . Salvage Created 6669 | 79 298 169 . 178 246 . 605 384 1088 . 292 . 272 296 2303 459 Parts 277 | 8 17 18 . 7 18 . 31 11 46 . 13 . 17 10 73 8 Haulers Intercepted 4 | . 1 . . . 2 . . . 1 . . . . . . . Recyclers Shooed . | . . . . . . . . . . . . . . . . . Parts Field Recycled . | . . . . . . . . . . . . . . . . . Retrieved Matter . | . . . . . . . . . . . . . . . . . Parts Self-Destructed 38 | . . . . . . . . . . 6 13 . 19 . . . Prevented . | . . . . . . . . . . . . . . . . . Parts Restored . | . . . . . . . . . . . . . . . . . Kills | -11 -10 -10 -10 -9 -8 -7 -7 -6 -5 -5 -5 -5 -4 -4 -4 -4 ------- Run | Yrd Mat Min Exi Min Mat Fac DSF Fac Fac Upp Upp War Pro Fac Gar Fac Combat Hostiles Destroyed 132 | . 7 8 . 4 3 . 10 4 17 . 5 . 12 6 51 5 Melee 1 | . . . . . . . . . . . . . . . . 1 Guns 37 | . 6 8 . 4 1 . 3 4 2 . . . 2 1 6 . Cannons 29 | . . . . . 2 . 3 . 4 . 5 . . . 11 4 AOE 56 | . 1 . . . . . 4 . 9 . . . 10 4 28 . Classes Destroyed 19 | 2 4 . . 1 1 . 3 2 2 . 1 . 1 . . 2 Worker 1 | . . . . . . . . 1 . . . . . . . . Builder 4 | . . . . . . . . . 3 . . . . . . 1 Tunneler 3 | 2 . . . . . . . . . . . . . . . 1 Hauler 4 | . 1 . . . 2 . . . 1 . . . . . . . Recycler 4 | 1 . . . . . . . 1 1 . . . . . . 1 Mechanic 1 | . . . . . . . . . . . . . . . . 1 Drone 2 | . . . . . . . . . . . . . 2 . . . Watcher 2 | . 1 . . . . . . . 1 . . . . . . . Swarmer 42 | . 3 6 . . . . . . 5 . . . 10 . 18 . Saboteur 1 | . . . . . . . . . . . . . . . . 1 Grunt 40 | . 4 2 . 3 . . 2 3 6 . 3 . . 3 13 1 Brawler 7 | . . . . . . . . . 2 . . . . 1 2 2 Duelist 8 | . . . . 1 . . 1 . 1 . . . . 1 3 1 Sentry 10 | . . . . . 3 . . . . . . . . . 7 . Specialist 8 | . . . . . . . 3 . . . . . . . 5 . Hunter 6 | . . . . . . . 3 . 3 . . . . . . . Programmer 4 | . . . . . . . . . . . 2 . . 1 1 . Heavy 1 | . . . . . . . 1 . . . . . . . . . Behemoth 3 | . . . . . . . . 1 . . . . . . 2 . Best Kill Streak 9 | 3 3 3 . 1 2 . 3 3 9 . 3 . 5 5 5 5 Combat Bots Only 5 | . 3 3 . 1 2 . 3 3 5 . 3 . 5 5 5 3 Max Kills in Single Turn 5 | 1 1 1 . 1 1 . 2 1 5 . 1 . 4 3 4 2 Gunslinging . | . . . . . . . . . . . . . . . . . Exploded 4 | . 1 . . . . . 2 . 3 . . . 4 2 4 . Melee 1 | . . . . . . . . . . . . . . . . 1 Uniques/NPCs Destroyed . | . . . . . . . . . . . . . . . . . Combat | -11 -10 -10 -10 -9 -8 -7 -7 -6 -5 -5 -5 -5 -4 -4 -4 -4 -------- Run | Yrd Mat Min Exi Min Mat Fac DSF Fac Fac Upp Upp War Pro Fac Gar Fac Hostile Shots Fired 882 | . 35 32 . 37 12 . 73 75 58 . 6 . 28 35 305 186 Missed 261 | . 12 9 . 14 2 . 20 18 18 . 2 . 9 16 100 41 Hits 621 | . 23 23 . 23 10 . 53 57 40 . 4 . 19 19 205 145 Melee 40 | . . . . 3 . . 3 . 4 . . . . . 1 29 Projectile 581 | . 23 23 . 20 10 . 50 57 36 . 4 . 19 19 204 116 AOE 6 | . . . . . . . . 2 . . . . . 1 . 3 Critical Strikes 34 | . . . . 1 . . 5 7 1 . . . . 1 9 10 Damage Taken 14243 | 33 274 220 . 333 165 . 1208 1215 889 . 79 30 481 571 4720 4025 Core 1482 | . 47 49 . 36 . . 55 103 . . 19 . 18 56 239 860 Absorbed by Shields . | . . . . . . . . . . . . . . . . . Reduced by Siege Mode 97 | . . . . . . . . . . . . . . . . 97 Ignored by Resistances 180 | . . . . . . . . . . . . . . . 89 91 Regen/Repaired (Parts) 58 | . . . . . . . . . . . . 58 . . . . Core Remaining (%) 87 | 100 . . . 47 100 . 92 87 . . . . 96 . . . Volleys Fired 352 | 6 31 17 . 27 15 . 25 17 25 . 5 . 20 18 128 18 Largest 5 | 2 2 2 . 2 3 . 4 4 4 . 4 . 4 3 5 4 Hottest 438 | 80 80 80 . 85 111 . 190 210 350 . 350 . 290 300 438 331 Shots Fired 892 | 12 62 34 . 54 43 . 89 58 88 . 20 1 29 26 323 53 Gun 565 | 12 62 34 . 54 32 . 56 52 50 . 5 1 13 9 162 23 Cannon 278 | . . . . . 10 . 22 6 36 . 15 . 2 17 141 29 Launcher 49 | . . . . . 1 . 11 . 2 . . . 14 . 20 1 Special . | . . . . . . . . . . . . . . . . . Kinetic 309 | . . . . 52 28 . 33 34 30 . . . . 8 96 28 Thermal 514 | 6 53 34 . 2 14 . 45 24 56 . 20 1 11 18 207 23 Explosive 47 | . . . . . 1 . 9 . 2 . . . 14 . 20 1 Electromagnetic 17 | 6 9 . . . . . 2 . . . . . . . . . Entropic 5 | . . . . . . . . . . . . . 4 . . 1 Robot Hit Streak 24 | 5 8 6 . 7 18 . 11 14 14 . 5 . 7 9 12 24 Robot Miss Streak 5 | 1 4 3 . 4 1 . 3 5 2 . 1 . 3 4 5 2 Penetration Max 1 | . . . . . . . . . 1 . . . . . . 1 Secondary Targets 1 | . . . . . . . . . 1 . . . . . . . Max Gunslinging Chain 1 | . . . . . . . . . 1 . . . . . . . Shots Hit Robots 554 | 10 36 17 . 33 31 . 59 40 64 . 15 . 16 11 180 42 Core Hits 417 | 3 14 11 . 10 11 . 31 22 84 . 14 . 24 12 149 32 Critical Kills 7 | . . . . . . . . . 1 . . . . . 6 . Critical Parts Destroyed 11 | . . . . 1 . . . . . . . . . 2 8 . Critical Strikes 27 | . . . . 1 . . . . 1 . . . . 2 19 4 Burn 6 | . . . . . . . . . . . . . . . 4 2 Meltdown 3 | . . . . . . . . . 1 . . . . . 2 . Destroy 16 | . . . . 1 . . . . . . . . . 2 13 . Blast 2 | . . . . . . . . . . . . . . . . 2 Melee Attacks . | . . . . . . . . . . . . . . . . . Impact . | . . . . . . . . . . . . . . . . . Slashing . | . . . . . . . . . . . . . . . . . Piercing . | . . . . . . . . . . . . . . . . . Sneak Attacks . | . . . . . . . . . . . . . . . . . Combat Hostiles . | . . . . . . . . . . . . . . . . . Follow-up Attacks . | . . . . . . . . . . . . . . . . . Damage Inflicted 20616 | 190 476 199 . 349 503 . 1758 1012 2871 . 498 . 1196 1247 8076 2241 Guns 7163 | 111 404 194 . 349 230 . 590 948 970 . 138 . 401 99 2083 646 Cannons 5290 | . . . . . 188 . 345 64 820 . 360 . 38 113 2273 1089 Explosions 8139 | 79 72 . . . 79 . 823 . 1081 . . . 757 1035 3720 493 Melee . | . . . . . . . . . . . . . . . . . Ramming 24 | . . 5 . . 6 . . . . . . . . . . 13 Kinetic 4073 | . . . . 334 179 . 276 524 479 . . . . 111 1160 1010 Thermal 10907 | 124 404 194 . 15 239 . 659 488 1448 . 498 . 192 918 5083 645 Explosive 4263 | . . . . . 79 . 626 . 257 . . . 757 218 1833 493 Electromagnetic 1022 | 66 72 . . . . . 197 . 687 . . . . . . . Impact . | . . . . . . . . . . . . . . . . . Slashing . | . . . . . . . . . . . . . . . . . Piercing . | . . . . . . . . . . . . . . . . . Entropic 327 | . . . . . . . . . . . . . 247 . . 80 Highest Corruption 19 | . . . . . . . . . 1 1 2 2 . 3 3 19 Average Corruption 3 | . . . . . . . . . 1 1 1 2 . 2 3 6 Corruption Purged . | . . . . . . . . . . . . . . . . . Corruption Blocked . | . . . . . . . . . . . . . . . . . Effects 76 | . . . . . . . . . 1 2 2 2 . 1 49 19 Message Errors 21 | . . . . . . . . . 1 . . . . 1 13 6 Matter Fused 20 | . . . . . . . . . . 1 1 1 . . 14 3 Heat Flow Errors 7 | . . . . . . . . . . . . . . . 4 3 Energy Discharges 9 | . . . . . . . . . . 1 1 . . . 5 2 Parts Rejected 1 | . . . . . . . . . . . . . . . 1 . Data Loss (minor) 8 | . . . . . . . . . . . . . . . 7 1 Data Loss (major) 3 | . . . . . . . . . . . . . . . 1 2 Misfires 3 | . . . . . . . . . . . . 1 . . 2 . Alerts 1 | . . . . . . . . . . . . . . . 1 . Weapon Failures 3 | . . . . . . . . . . . . . . . 1 2 Overload Shots . | . . . . . . . . . . . . . . . . . Overflow Damage 154 | . 14 . . . . . . . 1 . . . 89 . 48 2 Projectiles 1 | . . . . . . . . . 1 . . . . . . . Explosions 153 | . 14 . . . . . . . . . . . 89 . 48 2 Melee . | . . . . . . . . . . . . . . . . . Knockbacks 35 | . . . . . . . . . . . . . . . 26 9 Impact . | . . . . . . . . . . . . . . . . . Kinetic 31 | . . . . . . . . . . . . . . . 26 5 Secondary 4 | . . . . . . . . . . . . . . . . 4 Self-Inflicted Damage 1187 | 33 20 . . . . . . . 62 . . . 20 82 931 39 Shots 51 | 2 2 . . . . . . . 2 . . . 1 2 41 1 Rammed 2 | . . 1 . . 1 . . . . . . . . . . . Targets Rammed 3 | . . 1 . . 1 . . . . . . . . . . 1 Kicked . | . . . . . . . . . . . . . . . . . Crushed 1 | . . . . . . . . . . . . . . . . 1 Highest Temperature 402 | 102 135 75 . . 48 . 265 347 304 . 27 . . . 402 193 Average Temperature 88 | 44 47 33 . . 16 . 69 172 67 . 18 . . . 111 94 Received Heat Transfer 2420 | . 114 54 . 132 54 . 117 529 207 . . . 36 46 617 514 Effects 11 | . . . . . . . . 4 . . . . . . 7 . Shutdowns 2 | . . . . . . . . 1 . . . . . . 1 . Energy Bleed 1 | . . . . . . . . . . . . . . . 1 . Interference 8 | . . . . . . . . 3 . . . . . . 5 . Siege Activations 2 | . . . . . . . . . . . . . . . . 2 Total Turns 103 | . . . . . . . . . . . . . . . . 103 Longest Duration 78 | . . . . . . . . . . . . . . . . 78 Martial Activations . | . . . . . . . . . . . . . . . . . Shielding Activations . | . . . . . . . . . . . . . . . . . Robots Disrupted 1 | . . . . . . . . . 1 . . . . . . . Combat Hostiles 1 | . . . . . . . . . 1 . . . . . . . Robots Corrupted . | . . . . . . . . . . . . . . . . . Combat Hostiles . | . . . . . . . . . . . . . . . . . Parts Fried 9 | . . . . . . . 1 . 7 . . . . . . 1 Impact Corruptions . | . . . . . . . . . . . . . . . . . Robots Melted 9 | . . . . . . . . . 2 . . . . 1 6 . Combat Hostiles 9 | . . . . . . . . . 2 . . . . 1 6 . Parts Melted 28 | . 1 . . 1 1 . . 1 1 . . . . 3 20 . Heat Transferred 17073 | 100 850 450 . 37 444 . 1258 948 1675 . 625 . 350 885 8339 1112 Parts Sabotaged 1 | . . . . . . . . . . . . . . . . 1 Parts Stolen . | . . . . . . . . . . . . . . . . . Parts Stripped . | . . . . . . . . . . . . . . . . . Power Chain Reactions 10 | 2 2 . . . . . . . 5 . . . . 1 . . Alert | -11 -10 -10 -10 -9 -8 -7 -7 -6 -5 -5 -5 -5 -4 -4 -4 -4 ------- Run | Yrd Mat Min Exi Min Mat Fac DSF Fac Fac Upp Upp War Pro Fac Gar Fac Maximum Alert Level 5 | . . . . . . . 1 . 2 . . . . 2 5 4 Low Security (%) 51 | 100 100 100 . 100 100 100 82 100 77 . . . . . . . Level 1 4 | . . . . . . . 17 . 6 . . . . 31 3 . Level 2 8 | . . . . . . . . . 15 . . . . 68 10 . Level 3 8 | . . . . . . . . . . . . . . . 24 . Level 4 13 | . . . . . . . . . . . . . . . 18 100 Level 5 14 | . . . . . . . . . . . . . . . 41 . High Security . | . . . . . . . . . . . . . . . . . Max Security . | . . . . . . . . . . . . . . . . . Sterilizations 1 | . . . . . . . 1 . . . . . . . . . Peak Influence 2625 | 10 132 62 . 103 66 5 209 109 653 . . . . 639 2625 1574 Initial 1377 | . . 28 . . 33 . 3 109 29 . . . . 639 286 1377 Average 638 | 1 43 13 . 11 23 . 121 31 159 . . . . 480 1454 1372 Influence Increases 6986 | 15 249 190 . 161 208 10 306 176 877 . 146 21 329 904 2629 765 Destroy 0b10 Robot/C 2940 | . 140 160 . 100 120 . 200 80 400 . 100 . 260 120 1060 200 Destroy 0b10 Robot/NC 140 | 15 10 . . . 10 . 20 10 30 . . 5 20 . . 20 Destroy Leader 432 | . 34 30 . 20 44 . 50 20 74 . 20 . 40 20 40 40 Allied During Kill 207 | . . . . 11 14 . . . 11 . 26 1 9 . 30 105 Successful Hack 126 | . . . . . 7 10 . 16 34 . . . . 45 14 . Disable Machine 510 | . 15 . . . . . 15 . 285 . . . . 75 45 75 Anti-Garrison Action 1300 | . . . . . . . . . . . . . . . 1150 150 Destroy Structure 506 | . 5 . . . 13 . 21 5 28 . . . . 44 290 100 Advance Influence 600 | . . . . . . . . . . . . . . 600 . . Lose Combat Pursuer 225 | . 45 . . 30 . . . 45 15 . . 15 . . . 75 Influence Decreases 5522 | 15 174 265 . 74 295 5 102 324 317 461 171 153 268 559 413 1926 Entered New Map 2031 | . . 47 . . 54 . 2 100 32 231 31 135 3 25 123 1248 Time Decay 2174 | 15 154 218 . 64 174 5 . 214 215 230 140 18 235 214 . 278 Lost Part 540 | . 20 . . 10 10 . 100 10 10 . . . 10 20 190 160 Lost Ally 477 | . . . . . 57 . . . 60 . . . 20 . 100 240 Purge Threat 300 | . . . . . . . . . . . . . . 300 . . Squads Dispatched 20 | . 1 . . . . . 2 . 6 . . . . 3 . 8 Investigation 4 | . . . . . . . . . 2 . . . . 1 . 1 Extermination 2 | . . . . . . . . . 1 . . . . 1 . . Reinforcement 7 | . 1 . . . . . 2 . 3 . . . . . . 1 Assault 5 | . . . . . . . . . . . . . . . . 5 Garrison 2 | . . . . . . . . . . . . . . 1 . 1 Intercept . | . . . . . . . . . . . . . . . . . Searches Triggered . | . . . . . . . . . . . . . . . . . Construction Impeded 3 | . . . . . . . . . 2 . . . . . . 1 Haulers Reinforced 1 | . . . . . . . . . 1 . . . . . . . Active Scanning Responses . | . . . . . . . . . . . . . . . . . Cargo Convoy Interrupts . | . . . . . . . . . . . . . . . . . Stealth | -11 -10 -10 -10 -9 -8 -7 -7 -6 -5 -5 -5 -5 -4 -4 -4 -4 --------- Run | Yrd Mat Min Exi Min Mat Fac DSF Fac Fac Upp Upp War Pro Fac Gar Fac Distress Signals 6 | . . . . . 2 . . . 3 . . 1 . . . . Communications Jammed . | . . . . . . . . . . . . . . . . . Distress Signals . | . . . . . . . . . . . . . . . . . Times Spotted 180 | . 13 7 . 7 8 . 10 7 15 . 5 10 12 8 50 28 Peak Tracking Total 16 | . 3 3 . 3 3 . 3 4 5 . 3 5 5 4 5 16 Tactical Retreats 13 | . 3 . . 1 . . . 3 1 . . 1 . . . 4 Traps | -11 -10 -10 -10 -9 -8 -7 -7 -6 -5 -5 -5 -5 -4 -4 -4 -4 ------- Run | Yrd Mat Min Exi Min Mat Fac DSF Fac Fac Upp Upp War Pro Fac Gar Fac Traps Triggered 6 | . . . . . . . 1 . 2 . . . . . 3 . Indirectly 3 | . . . . . . . 1 . 2 . . . . . . . Trap Hack Attempts . | . . . . . . . . . . . . . . . . . Triggered . | . . . . . . . . . . . . . . . . . Disarmed . | . . . . . . . . . . . . . . . . . Reprogrammed . | . . . . . . . . . . . . . . . . . Reused . | . . . . . . . . . . . . . . . . . Traps Extracted . | . . . . . . . . . . . . . . . . . Installed . | . . . . . . . . . . . . . . . . . Triggered . | . . . . . . . . . . . . . . . . . Machines | -11 -10 -10 -10 -9 -8 -7 -7 -6 -5 -5 -5 -5 -4 -4 -4 -4 ---------- Run | Yrd Mat Min Exi Min Mat Fac DSF Fac Fac Upp Upp War Pro Fac Gar Fac Machines Disabled 42 | . 1 . . . . . 1 . 19 . . . . 5 10 6 Max in Single Turn 8 | . 1 . . . . . 1 . 8 . . . . 3 1 4 Garrison Access 1 | . . . . . . . . . . . . . . . . 1 Garrison Relay 7 | . . . . . . . . . . . . . . . 7 . Machines Repaired . | . . . . . . . . . . . . . . . . . Machines Dismantled 1 | . . . . . . . . . . . . . . . 1 . Machines Sabotaged . | . . . . . . . . . . . . . . . . . Overloaded Fab Kills . | . . . . . . . . . . . . . . . . . Hacking | -11 -10 -10 -10 -9 -8 -7 -7 -6 -5 -5 -5 -5 -4 -4 -4 -4 --------- Run | Yrd Mat Min Exi Min Mat Fac DSF Fac Fac Upp Upp War Pro Fac Gar Fac Machines Accessed 34 | . 1 . . 1 4 2 . 2 4 . . 12 . 5 1 2 Terminals 14 | . 1 . . 1 2 2 . 2 1 . . . . 3 1 1 Fabricators 3 | . . . . . . . . . 2 . . . . 1 . . Repair Stations . | . . . . . . . . . . . . . . . . . Recycling Units . | . . . . . . . . . . . . . . . . . Scanalyzers 3 | . . . . . 2 . . . 1 . . . . . . . Garrison Access 2 | . . . . . . . . . . . . . . 1 . 1 Total Hacks 73 | . 2 . . 1 8 4 . 3 8 . . 22 . 19 1 5 Successful 51 | . . . . . 5 3 . 2 5 . . 22 . 13 1 . Failed 20 | . 2 . . 1 2 1 . 1 2 . . . . 6 . 5 Catastrophic 3 | . . . . 1 . . . 1 . . . . . . . 1 Database Lockouts 2 | . . . . . 1 . . . 1 . . . . . . . Manual 19 | . 2 . . 1 1 1 . 1 . . . . . 12 . 1 Terminals 32 | . 2 . . 1 3 4 . 3 2 . . . . 15 1 1 Fabricators 6 | . . . . . . . . . 4 . . . . 2 . . Repair Stations . | . . . . . . . . . . . . . . . . . Recycling Units . | . . . . . . . . . . . . . . . . . Scanalyzers 7 | . . . . . 5 . . . 2 . . . . . . . Garrison Access 6 | . . . . . . . . . . . . . . 2 . 4 Terminal Hacks 35 | . . . . . 1 3 . 2 . . . 22 . 6 1 . Record 21 | . . . . . . . . . . . . 21 . . . . Robot Schematic 1 | . . . . . . . . 1 . . . . . . . . Robot Analysis 1 | . . . . . . . . . . . . . . 1 . . Open Door 1 | . . . . . . . . . . . . 1 . . . . Open DSF 1 | . . . . . . 1 . . . . . . . . . . Emergency Access Points 1 | . . . . . . . . . . . . . . . 1 . Alert Level 2 | . . . . . . . . 1 . . . . . 1 . . Unreport Threat 2 | . . . . . . . . . . . . . . 2 . . Locate Traps 1 | . . . . . . . . . . . . . . 1 . . Dispatch Records 1 | . . . . . . 1 . . . . . . . . . . Zone Layout 3 | . . . . . 1 1 . . . . . . . 1 . . Fabricator Hacks 6 | . . . . . . . . . 4 . . . . 2 . . Load Schematic 3 | . . . . . . . . . 2 . . . . 1 . . Build 3 | . . . . . . . . . 2 . . . . 1 . . Repair Station Hacks . | . . . . . . . . . . . . . . . . . Recycling Unit Hacks . | . . . . . . . . . . . . . . . . . Scanalyzer 5 | . . . . . 4 . . . 1 . . . . . . . Retrieve Study 5 | . . . . . 4 . . . 1 . . . . . . . Garrison Access Hacks 1 | . . . . . . . . . . . . . . 1 . . Unlock Access 1 | . . . . . . . . . . . . . . 1 . . Unauthorized Hacks 4 | . . . . . . . . . . . . . . 4 . . Terminals 4 | . . . . . . . . . . . . . . 4 . . Assimilate 1 | . . . . . . . . . . . . . . 1 . . Botnet 2 | . . . . . . . . . . . . . . 2 . . Operators 1 | . . . . . . . . . . . . . . 1 . . Fabricators . | . . . . . . . . . . . . . . . . . Repair Stations . | . . . . . . . . . . . . . . . . . Recycling Units . | . . . . . . . . . . . . . . . . . Scanalyzers . | . . . . . . . . . . . . . . . . . Garrison Access . | . . . . . . . . . . . . . . . . . Data Cores Recovered . | . . . . . . . . . . . . . . . . . Used . | . . . . . . . . . . . . . . . . . Hacking Detections 17 | . 1 . . 1 3 1 . 1 4 . . . . 4 . 2 Full Trace Events 4 | . . . . . . . . . 2 . . . . 1 . 1 Feedback Events . | . . . . . . . . . . . . . . . . . Feedback Blocked . | . . . . . . . . . . . . . . . . . Robot Schematics Acquired 1 | . . . . . . . . 1 . . . . . . . . Robots Built 6 | . . . . . . . . . 6 . . . . . . . Authchips . | . . . . . . . . . . . . . . . . . Time 335 | . . . . . . . . . 201 . . . . 134 . . Total Robot Build Rating 24 | . . . . . . . . . 24 . . . . . . . Part Schematics Acquired . | . . . . . . . . . . . . . . . . . Parts Built . | . . . . . . . . . . . . . . . . . Authchips . | . . . . . . . . . . . . . . . . . Time . | . . . . . . . . . . . . . . . . . Total Part Build Rating . | . . . . . . . . . . . . . . . . . Part Studies Acquired 5 | . . . . . 4 . . . 1 . . . . . . . Parts Repaired . | . . . . . . . . . . . . . . . . . Time . | . . . . . . . . . . . . . . . . . Parts Recycled . | . . . . . . . . . . . . . . . . . Recycled Matter . | . . . . . . . . . . . . . . . . . Retrieved Matter . | . . . . . . . . . . . . . . . . . Retrieved Components . | . . . . . . . . . . . . . . . . . Parts Scanalyzed . | . . . . . . . . . . . . . . . . . Part Schematics Acquired . | . . . . . . . . . . . . . . . . . Parts Damaged . | . . . . . . . . . . . . . . . . . Bothacking | -11 -10 -10 -10 -9 -8 -7 -7 -6 -5 -5 -5 -5 -4 -4 -4 -4 ------------ Run | Yrd Mat Min Exi Min Mat Fac DSF Fac Fac Upp Upp War Pro Fac Gar Fac Used RIF Installer . | . . . . . . . . . . . . . . . . . Robots Hacked . | . . . . . . . . . . . . . . . . . Non-combat . | . . . . . . . . . . . . . . . . . Combat . | . . . . . . . . . . . . . . . . . Robot Hacks Applied . | . . . . . . . . . . . . . . . . . Relay Couplers Released 24 | . . . . . . . . . . . . . . . 24 . Machine Destruction 24 | . . . . . . . . . . . . . . . 24 . Fabnet Peak Effective % . | . . . . . . . . . . . . . . . . . Robots Rewired 17 | . . . . . . . . . . . . . . . 17 . Allies Hacked . | . . . . . . . . . . . . . . . . . Hacks Repelled . | . . . . . . . . . . . . . . . . . Allies | -11 -10 -10 -10 -9 -8 -7 -7 -6 -5 -5 -5 -5 -4 -4 -4 -4 -------- Run | Yrd Mat Min Exi Min Mat Fac DSF Fac Fac Upp Upp War Pro Fac Gar Fac Total Allies 26 | . . . . 3 . . . . 6 . . . . . 17 . Largest Group 12 | . . . . 3 3 . . . 3 3 3 3 2 . 12 12 Highest-Rated Group 536 | . . . . 40 40 . . . 90 90 90 90 60 . 536 536 Highest-Rated Ally 56 | . . . . 16 16 . . . 30 30 30 30 30 . 56 56 Initial Warlord ECA Mod 18 | . . . . . . . . 9 8 8 8 8 7 7 7 18 Total Orders 3 | . . . . . . . . . . . . . . . 3 . STAY 1 | . . . . . . . . . . . . . . . 1 . ROAM 2 | . . . . . . . . . . . . . . . 2 . Ally Attacks 142 | . . . . 2 25 . . . 12 . 5 6 16 . 28 48 Total Damage 3398 | . . . . 33 250 . . . 364 . 150 163 574 . 328 1536 Kills 18 | . . . . 1 3 . . . 3 . . 1 3 . 2 5 Allies Corrupted . | . . . . . . . . . . . . . . . . . Allies Melted 1 | . . . . . . . . . . . . . 1 . . . Intel | -11 -10 -10 -10 -9 -8 -7 -7 -6 -5 -5 -5 -5 -4 -4 -4 -4 ------- Run | Yrd Mat Min Exi Min Mat Fac DSF Fac Fac Upp Upp War Pro Fac Gar Fac Active Infowar (turns) 1802 | 26 663 105 . . 424 135 449 . . . . . . . . . Sensors 1 | . . . . . 1 . . . . . . . . . . . Seismic 1801 | 26 663 105 . . 423 135 449 . . . . . . . . . Robot Analysis Total 1 | . . . . . . . . . . . . . . 1 . . Derelict Logs Recovered 9 | . . 1 . 3 . . . . . 2 1 . 2 . . . Drone Launches . | . . . . . . . . . . . . . . . . . Drone Recoveries . | . . . . . . . . . . . . . . . . . Exploration | -11 -10 -10 -10 -9 -8 -7 -7 -6 -5 -5 -5 -5 -4 -4 -4 -4 ------------- Run | Yrd Mat Min Exi Min Mat Fac DSF Fac Fac Upp Upp War Pro Fac Gar Fac Turns Passed 11944 | 109 663 1034 120 461 427 135 478 654 770 494 291 1050 1274 453 2931 600 Spaces Moved 5821 | 58 345 604 74 238 219 85 225 338 390 307 167 645 758 236 955 177 Core 23 | 23 . . . . . . . . . . . . . . . . Treads 5798 | 35 345 604 74 238 219 85 225 338 390 307 167 645 758 236 955 177 Legs . | . . . . . . . . . . . . . . . . . Wheels . | . . . . . . . . . . . . . . . . . Hover . | . . . . . . . . . . . . . . . . . Flight . | . . . . . . . . . . . . . . . . . Fastest Speed 50 | 50 160 160 160 160 156 156 152 157 160 160 160 160 160 160 160 243 Average Speed 170 | 117 160 160 160 160 157 156 155 157 160 160 160 160 160 160 215 243 Slowest Speed 245 | 160 160 160 160 160 160 156 156 160 160 160 160 160 160 160 245 243 Overloaded Moves . | . . . . . . . . . . . . . . . . . Propulsion Burnouts . | . . . . . . . . . . . . . . . . . Robots Hopped . | . . . . . . . . . . . . . . . . . Potential Cave-ins 2 | . . . . . . . . . . . . . . 2 . . Cave-ins Triggered 1 | . . . . . . . . . . . . . . . . 1 Exploration Rate (%) 42 | 6 56 97 14 58 26 2 97 10 10 57 36 78 79 7 88 5 Regions Visited 16 Branch Regions 7 Pre-discovered Areas 5 | . . 1 . . . . . . . 2 1 . 1 . . . Known Exits Taken 3 | . . . . . 1 1 . . . . . . . 1 . . Unknown Exits Taken 11 | 1 1 1 1 1 . . . 1 1 1 1 1 1 . . . Scrap Searched 6 | . . 1 . 1 . . . . . 1 . . 3 . . . Spaces Dug 33 | . . . . . . . . . . . . . 30 3 . . Terrain Destroyed 413 | . 4 . . . 11 . 21 4 12 . 4 . 112 47 144 54 Melee . | . . . . . . . . . . . . . . . . . Projectile 58 | . . . . . . . . 4 9 . 4 . 4 12 14 11 AOE 355 | . 4 . . . 11 . 21 . 3 . . . 108 35 130 43 Terrain Rammed . | . . . . . . . . . . . . . . . . . Walls Destroyed . | . . . . . . . . . . . . . . . . . Machines Disabled . | . . . . . . . . . . . . . . . . . Actions | -11 -10 -10 -10 -9 -8 -7 -7 -6 -5 -5 -5 -5 -4 -4 -4 -4 --------- Run | Yrd Mat Min Exi Min Mat Fac DSF Fac Fac Upp Upp War Pro Fac Gar Fac Total 7129 | 87 396 639 76 270 274 87 297 419 471 311 176 665 790 285 1588 298 Wait 328 | 9 4 1 . . 11 . 6 34 19 1 5 4 4 3 148 79 Move 5806 | 57 344 603 73 237 218 84 224 337 389 306 166 644 757 236 954 177 Hop . | . . . . . . . . . . . . . . . . . Pick Up 136 | 8 11 6 . 2 10 1 15 13 10 2 . 1 1 10 39 7 Fast Attach 24 | 1 . 2 . 1 1 . 4 . 4 . . 5 . . 5 1 Attach 95 | 6 2 1 . 2 7 2 10 7 3 . . . 1 8 38 8 Detach 18 | . . . . . 1 . 1 . . . . . . 6 10 . Swap 45 | . 1 1 . . 4 . 3 7 9 . . 1 4 . 15 . Drop 84 | . 3 7 . 1 6 . 9 4 12 2 . 10 1 4 18 7 Fire 352 | 6 31 17 . 27 15 . 25 17 25 . 5 . 20 18 128 18 Melee . | . . . . . . . . . . . . . . . . . Ram . | . . . . . . . . . . . . . . . . . Kick . | . . . . . . . . . . . . . . . . . Crush 3 | . . 1 . . 1 . . . . . . . . . . 1 Escape Stasis 8 | . . . . . . . . . . . . . . . 8 . Rewire 222 | . . . 3 . . . . . . . . . 2 . 217 . Trap . | . . . . . . . . . . . . . . . . . Miscellaneous 8 | . . . . . . . . . . . . . . . 8 . Route ------- -11/Scrapyard -10/Materials (discovered 3 exits: [*Mat x2] / [*Min]) -10/Mines (discovered 3 exits: [*Mat x2] / [*Exi]) -10/Exiles -9/Mines -8/Materials (discovered 3 exits: *Fac x3) -7/Factory -7/DSF -6/Factory -5/Factory -5/Upper Caves -5/Upper Caves (discovered 2 exits: *Fac / *War) -5/Warlord -4/Proximity Caves -4/Factory (discovered 2 exits: Arm / Gar) -4/Garrison (discovered 4 exits: *Fac x4) -4/Factory History --------- Turn | Location | Event 9 | -11/Scrapyard | Discovered new exit (range 14) 110 | -11/Scrapyard | Entered Materials 289 | -10/Materials | Discovered new exit (range 5) 301 | -10/Materials | Build established: Mutant 484 | -10/Materials | Discovered new exit (range 13) 759 | -10/Materials | Discovered new exit (range 6) 773 | -10/Materials | Entered Mines 774 | -10/Mines | Learned location of Storage (-9) 817 | -10/Mines | Received a Rocket Launcher from a helpful Derelict 1162 | -10/Mines | Found a damaged Exp. Sensor Array with a note attached 1168 | -10/Mines | Found Prototype Device 1300 | -10/Mines | Discovered new exit (range 7) 1440 | -10/Mines | Learned location of 1 exit from Materials 1536 | -10/Mines | Discovered new exit (range 15) 1623 | -10/Mines | Build established: Scavenger-Mutant 1763 | -10/Mines | Found a Scrap Suit stashed away for nefarious purposes 1768 | -10/Mines | Found Scrap Suit 1800 | -10/Mines | Deemed a non-threat by the Exiles lab entrance 1800 | -10/Mines | Discovered new exit (range 5) 1807 | -10/Mines | Entered Exiles 1807 | -10/Exiles | Found Exiles lab destroyed 1906 | -10/Exiles | Discovered new exit (range 15) 1927 | -10/Exiles | Entered Mines 2046 | -9/Mines | Learned Materials garrison access intel 2051 | -9/Mines | Learned 4 Materials zone layouts 2234 | -9/Mines | Assisted by bots powering up and referring to "LRC-V3" 2363 | -9/Mines | Core integrity fell below 50% 2370 | -9/Mines | Discovered new exit (range 9) 2388 | -9/Mines | Entered Materials 2388 | -8/Materials | Accompanied by 3 allies 2388 | -8/Materials | Evolved 4 slots: Propulsion x2, Utility x1, Weapon x1 2389 | -8/Materials | Identified exit to Factory 2390 | -8/Materials | Identified Exp. Sensor Array 2392 | -8/Materials | Loaded intel: 1 garrison access location 2756 | -8/Materials | Central database locked down 2815 | -8/Materials | Entered Factory 2815 | -7/Factory | Evolved 2 slots: Utility x1, Weapon x1 2950 | -7/Factory | Identified exit to DSF 2950 | -7/Factory | Entered DSF 3008 | -7/DSF | Additional patrols routed to DSF 3068 | -7/DSF | Lost 8 parts (1p1n1u5w) 3145 | -7/DSF | Discovered new exit (range 16) 3364 | -7/DSF | Sterilization system engaged 3384 | -7/DSF | Ambient heat levels rising (+10) 3395 | -7/DSF | Build established: Tank 3399 | -7/DSF | Ambient heat levels rising (+10) 3414 | -7/DSF | Ambient heat levels rising (+10) 3428 | -7/DSF | Entered Factory 3428 | -6/Factory | Evolved 2 slots: Propulsion x1, Utility x1 3756 | -6/Factory | Discovered new exit (range 4) 3815 | -6/Factory | Spotted B-75 Beast 3842 | -6/Factory | Destroyed B-75 Beast 4082 | -6/Factory | Entered another Factory area 4082 | -5/Factory | Evolved 2 slots: Propulsion x1, Utility x1 4296 | -5/Factory | Central database locked down 4392 | -5/Factory | Discovered new exit (range 8) 4643 | -5/Factory | Fabricated L-41 Fighter? 4760 | -5/Factory | Fabricated L-41 Fighter? 4852 | -5/Factory | Entered Upper Caves 4852 | -5/Upper Caves | Accompanied by 3 allies 4858 | -5/Upper Caves | Met a Warlord Commander 4859 | -5/Upper Caves | Learned location of Warlord (-5) 4860 | -5/Upper Caves | Warlord Commander delivered Encrypted Comm Array 4860 | -5/Upper Caves | Found Encrypted Comm Array 5237 | -5/Upper Caves | Learned Factory stockpile data 5320 | -5/Upper Caves | Discovered new exit (range 16) 5346 | -5/Upper Caves | Entered another Upper Caves area 5346 | -5/Upper Caves | Accompanied by 3 allies 5432 | -5/Upper Caves | Discovered new exit (range 14) 5621 | -5/Upper Caves | Learned location of Armory (-4) 5622 | -5/Upper Caves | Discovered new exit (range 7) 5637 | -5/Upper Caves | Entered Warlord 5637 | -5/Warlord | Accompanied by 3 allies 5713 | -5/Warlord | System corruption cleaned by Quarantine Array 5808 | -5/Warlord | Found Prototype Device 5808 | -5/Warlord | Identified Minesniffer Drone Bay 5856 | -5/Warlord | Learned Quarantine stockpile data 5857 | -5/Warlord | Learned 4 Command zone layouts 5859 | -5/Warlord | Learned Armory terminal intel 5859 | -5/Warlord | Learned Armory scanalyzer intel 5902 | -5/Warlord | Found Prototype Energy Gun 6084 | -5/Warlord | Visited the Vortex Lab 6092 | -5/Warlord | Warlord's base attacked by MAIN.C 6105 | -5/Warlord | Found Prototype Energy Gun 6105 | -5/Warlord | Identified Vortex Shotgun 6108 | -5/Warlord | Found Vortex Shotgun 6442 | -5/Warlord | Warlord forces counterattacked 6634 | -5/Warlord | Spotted B-75 Beast 6645 | -5/Warlord | Spotted B-86 Titan 6664 | -5/Warlord | Discovered new exit (range 14) 6687 | -5/Warlord | Entered Proximity Caves 6687 | -4/Proximity Caves | Accompanied by 3 allies 6688 | -4/Proximity Caves | Lost 9 allies 6688 | -4/Proximity Caves | P-70 Sage assimilated allied Fighter 6d 6705 | -4/Proximity Caves | Spotted B-86 Titan 6820 | -4/Proximity Caves | Spotter reported a threat 6846 | -4/Proximity Caves | Spotter reported a threat 6912 | -4/Proximity Caves | Learned location of Quarantine (-2) 6954 | -4/Proximity Caves | Spotter reported a threat 6955 | -4/Proximity Caves | Spotter reported a threat 7015 | -4/Proximity Caves | Learned 8 Research zone layouts 7929 | -4/Proximity Caves | Discovered new exit (range 7) 7961 | -4/Proximity Caves | Entered Factory 7961 | -4/Factory | Evolved 2 slots: Utility x1, Weapon x1 7962 | -4/Factory | Identified exit to Armory 7964 | -4/Factory | Identified Plasma Storm 8354 | -4/Factory | Garrison activated, responded to threat 8414 | -4/Factory | Identified exit to Garrison 8414 | -4/Factory | Entered Garrison 8470 | -4/Garrison | Triggered checkpoint 8499 | -4/Garrison | Garrison Relay disabled 8682 | -4/Garrison | Triggered checkpoint 8682 | -4/Garrison | Triggered checkpoint 8834 | -4/Garrison | Triggered checkpoint 8914 | -4/Garrison | Triggered checkpoint 8919 | -4/Garrison | Discovered new exit (range 14) 8957 | -4/Garrison | Triggered checkpoint 8983 | -4/Garrison | Discovered new exit (range 5) 9110 | -4/Garrison | Garrison Relay disabled 9114 | -4/Garrison | Build established: Scavenger-Tank 9279 | -4/Garrison | Spotted B-86 Titan 9279 | -4/Garrison | Spotted B-86 Titan 9327 | -4/Garrison | Destroyed B-86 Titan 9358 | -4/Garrison | Destroyed B-86 Titan 9360 | -4/Garrison | Lost 6 parts (1p3n2u) 9412 | -4/Garrison | Found Hvy. Reflective Plating 9554 | -4/Garrison | Triggered checkpoint 9594 | -4/Garrison | Triggered checkpoint 9616 | -4/Garrison | Triggered checkpoint 9640 | -4/Garrison | Triggered checkpoint 10118 | -4/Garrison | Garrison Relay disabled 10238 | -4/Garrison | Garrison Relay disabled 10315 | -4/Garrison | Garrison Relay disabled 10753 | -4/Garrison | Discovered new exit (range 8) 10916 | -4/Garrison | Build established: Commander-Tank 10954 | -4/Garrison | Discovered new exit (range 9) 11077 | -4/Garrison | Garrison Relay disabled 11345 | -4/Garrison | Entered Factory 11345 | -4/Factory | Accompanied by 12 allies 11576 | -4/Factory | Garrison activated, responded to threat 11595 | -4/Factory | First assault squad dispatched 11624 | -4/Factory | Lost 3 allies 11631 | -4/Factory | Crushed by falling debris 11814 | -4/Factory | Lost 9 allies 11911 | -4/Factory | System corruption reached 10% 11937 | -4/Factory | Core integrity fell below 50% 11943 | -4/Factory | Core integrity fell below 20% 11945 | -4/Factory | Destroyed by G-73 Enforcer with Phase Gun Last Messages --------------- 11936_ Imp. Treads destroyed. 11936_ Hvy. Mass Driver destroyed. 11937_ K-01 Serf collects debris. 11938_ Rocket Launcher+ destroyed. 11938_ Adv. Cooling System destroyed. 11939_ P-70 Sage resets L-61 Swordsman, system corruption cleaned. 11939_ K-01 Serf collects debris. 11941_ The unstable cave ceiling collapses. 11941_ P-70 Sage resets B-60 Warrior, system corruption cleaned. 11942_ Vortex Shotgun destroyed. 11942_ System corrupted by crushing effect (+2). 11942_ Knocked back. 11942_ L-61 Swordsman system corrupted by crushing effect. 11942_ Critical hit (Burn: +37). 11943_ P-70 Sage resets L-61 Swordsman, system corruption cleaned. 11943_ K-01 Serf collects debris. Map ----- +----------------------------------------------------+ | ???????????????????????????# ??????? | | ???????????????????????????# ???????? | | ???????????????????????????# ????????? | | ???????????????????????????# ?????????? | | ???????????????????????????# #?#?##?+#??? | | ????????????????????######## #? """ ? | | ????????????????????# #? "T" | | ????????????????????# ## " " | | ????????????????????# ## | | ????????????????????# ## """""""" | | ????????????????????# ##= | | ????????????????????# ######### ## | | ?????????#?????#??### ######??# ## !!! ! | | ?????????# """ #??# # T #??# ## !!! | | ?????????# """ #??# # #??# ## !! | | ?????????# #??# # = #??# / | | ?????????# """ #??# # #??# ## | | ?????????# """ #??# # #### ############ | | ?????????# """ ############ * + #???######## | | ???####??# ## #/* #### #???# # | | ??? ?? % # #*! #??# #???# * # | | ??? """"?###+#### # ! #??# #???# # | | ?" """" # / ## # ###### #???# + | | ?" """" # =%k*# % m g %%% % ##### # | | ?T """ " !%%%= % bbp + # | | ?" """" # %! # # b@g! % k ############ | | ?" """" # %=### llgg% ##### #??????????? | | ??? """" "## ""## # i % #???# #??????????? | | ??? #?# # ## #???# #??????????? | | ???######### #"### % # #???# #??????????? | | ?????????# ###kig! %%! # #???# #??????????? | | ?????????# %]!g # ??# #??????????? | | ?????????# ! ## %!! # ?#+#??????????? | | ?????????# ! ####%+## ##;# ## ?????????? | | ?????????# #??# % ! ### ## ???????? | | ??????######+###### + ## " """ ?????? | | ??????# # " " ### ## """ """ ???? | | ??????# """"""""" #! "G #?? ## """ """ #??? | | ??????# # """ #?? ## #??? | | ??????# #! #?? ?# """ """? ! #??? | | ??????# ""T"" ! ####+###?????#??"" """???????? | | ??????# """"" #????????????????? ""????????? | | ??????# ! #????????????????? ?????????? | | ??????#############????????????????? ?????????? | | ????????????????????????????????????? ?????????? | | ?????????????????????????????????????#?????????? | | ???????????????????????????????????????????????? | | ???????????????????????????????????????????????? | | ???????????????????????????????????????????????? | | ???????????????????????????????????????????????? | +----------------------------------------------------+ Best States ------------- Heat Dissipation 126 Coolant Potential 65 Energy Generation 29 Energy Capacity 350 Matter Stores 300 Matter Capacity 300 Sight Range 16 Terrain Scan Density 10 Armor Coverage 2400 Resistance: TH 25 Phase Shifting 15 Evasion (%) 55 Recoil Reduction 6 Energy Filtering 30 Authchip Count 1 Item Schematics ----------------- None Robot Schematics ------------------ L-41 Fighter | -6/Factory | Hacked Fabricated ------------ L-41 Fighter | x3 | -5/Factory L-41 Fighter | x3 | -5/Factory Repaired ---------- Nothing Studied --------- Rocket Launcher | -8/Materials | Hacked Adv. Treads | -8/Materials | Hacked Lgt. Treads | -8/Materials | Hacked Shock Bomb Launcher | -8/Materials | Hacked Neutrino Core | -5/Factory | Hacked Alien Tech Used ----------------- None Achievements -------------- About That Survey... Like A Rock Challenges ------------ None Game ------ Seed TerrorCobblerScythe Manual? 0 Play Time 01:17:37 Cumulative 131.0 hours Start 2025.12.09 @ 11:59:04 End 2025.12.09 @ 19:34:50 Sessions 3 Manual Loads 0 Difficulty Rogue Special Mode None Game No. 150 Rogue 150 Adventurer 0 Explorer 0 Win Type - Total 2 Types 2/0/0/0/0/0/0/0/0/0 Lore% 73 Gallery% 63 Achievement% 44 Wizard Run 0 Options --------- Layout 1 ASCII 0 Keyboard 0 Movement Arrows Keybinds 0 Fullscreen 1 Font 32/SmallcapsGlow Map View 50x35 Zoom Use 0% Tactical HUD 1 Map Filters NONE Filters NONE Steam 1 RUN: 3f250e9e-122f-4f18-9410-6e1189bc3375